bitfinex-derivatives/quotes_SOLF0:USTF0_20250509
["timestamp","ask_amount","ask_price","bid_price","bid_amount"]
[1746764479297,6.1899,161.58,161.55,6.1908]
[1746764480093,29.28,161.59,161.56,6.1903]
[1746764480297,29.28,161.59,161.53,29.24]
[1746764480702,35.4696,161.59,161.53,29.24]
[1746764482301,35.4696,161.59,161.55,6.1905]
[1746764482596,29.28,161.59,161.53,29.24]
[1746764483001,29.22,161.62,161.53,29.24]
[1746764483301,6.189,161.6,161.56,6.1903]
[1746764484204,6.189,161.6,161.57,6.1901]
[1746764484702,6.1888,161.61,161.58,6.1897]
[1746764485504,35.4084,161.62,161.58,6.1897]
[1746764485904,35.4084,161.62,161.59,6.1893]
[1746764487201,29.22,161.64,161.58,6.19576408]
[1746764487409,357.0,161.73,161.58,35.41576408]
[1746764487410,29.22,161.67,161.58,35.41576408]
[1746764487601,6.1866,161.67,161.63,6.1876]
[1746764488002,29.22,161.68,161.61,29.22]
[1746764488208,35.4061,161.68,161.61,29.22]
[1746764488411,35.4061,161.68,161.61,35.41576408]
[1746764488606,29.22,161.68,161.61,35.41576408]
[1746764489508,29.22,161.68,161.65,6.1867]
[1746764489708,35.4059,161.68,161.65,6.1867]
[1746764489905,29.22,161.68,161.61,35.41576408]
[1746764490309,6.1864,161.67,161.61,35.41576408]
[1746764490509,29.22,161.68,161.61,35.41576408]
[1746764491109,5.9651,161.73,161.64,6.19576408]
[1746764491310,29.22,161.73,161.65,29.22]
[1746764491509,6.185,161.71,161.65,29.22]
[1746764491711,6.185,161.71,161.67,6.1861]
[1746764492309,6.1845,161.72,161.65,29.22]
[1746764493001,6.1845,161.72,161.65,31.166]
[1746764493204,6.1845,161.72,161.65,33.1292]
[1746764493413,6.1845,161.72,161.68,6.1857]
[1746764493713,6.1848,161.71,161.68,6.1857]
[1746764494215,6.1848,161.71,161.67,6.1862]
[1746764494415,6.1845,161.72,161.65,33.1292]
[1746764494617,29.22,161.73,161.65,33.1292]
[1746764495115,6.1854,161.7,161.65,33.1292]
[1746764495611,6.1854,161.7,161.67,6.1861]
[1746764495816,29.22,161.76,161.66,29.22]
[1746764496012,29.22,161.76,161.67,1.917]
[1746764496211,6.1822,161.78,161.74,6.1833]
[1746764496515,29.22,161.79,161.71,29.2]
[1746764496818,29.22,161.79,161.72,33.1048]
[1746764497412,35.4018,161.79,161.75,6.1831]
[1746764497711,29.22,161.79,161.75,6.1831]
[1746764497910,6.181,161.81,161.76,6.1826]
[1746764498117,563.86,161.82,161.76,6.1826]
[1746764498118,29.22,161.82,161.76,29.2]
[1746764499618,6.1819,161.79,161.76,29.2]
[1746764500416,29.22,161.82,161.77,6.1825]
[1746764500620,29.22,161.82,161.76,29.2]
[1746764501123,29.22,161.82,161.77,6.1822]
[1746764501418,29.2,161.85,161.76,29.2]
[1746764501715,29.2,161.87,161.76,29.2]
[1746764501921,6.1799,161.84,161.76,29.2]
[1746764502321,29.2,161.87,161.76,29.2]
[1746764502523,6.1806,161.82,161.76,29.2]
[1746764502821,29.2,161.87,161.78,6.182]
[1746764503019,29.2,161.87,161.76,29.2]
[1746764504022,29.2,161.87,161.77,6.1824]
[1746764504223,29.2,161.87,161.76,29.2]
[1746764505124,29.2,161.87,161.76,35.3828]
[1746764505318,6.1812,161.81,161.76,35.3828]
[1746764506025,6.1814,161.8,161.76,35.3828]
[1746764506225,6.1814,161.8,161.76,29.2]
[1746764506628,6.1818,161.79,161.74,29.2]
[1746764506818,29.2,161.83,161.72,3.9048]
[1746764507023,9.91847553,161.8,161.69,31.7859]
[1746764507223,6.1835,161.75,161.7,6.1849]
[1746764507524,6.1835,161.75,161.69,31.7859]
[1746764507726,6.183,161.76,161.71,6.1848]
[1746764508127,6.183,161.76,161.69,31.7859]
[1746764508425,6.183,161.76,161.71,6.1847]
[1746764508921,6.1834,161.75,161.71,6.1847]
[1746764509125,29.2,161.77,161.69,29.72]
[1746764509519,29.2,161.77,161.68,29.2]
[1746764509727,29.2,161.77,161.68,59.06]
[1746764510025,29.2,161.77,161.67,4.0732]
[1746764510026,29.2,161.77,161.67,33.9132]
[1746764510931,29.2,161.77,161.67,4.0732]
[1746764511230,29.2,161.77,161.67,34.0932]
[1746764511929,6.1839,161.74,161.7,6.1852]
[1746764512129,29.2,161.77,161.67,34.0932]
[1746764513029,6.184,161.73,161.69,6.1854]
[1746764513333,29.2,161.77,161.67,2.0884]
[1746764513522,6.1854,161.7,161.65,35.3868]
[1746764513723,6.1854,161.7,161.64,30.04]
[1746764513923,6.1854,161.7,161.62,34.0038]
[1746764514119,6.1854,161.7,161.63,30.04]
[1746764514325,29.96,161.72,161.63,30.04]
[1746764514829,36.1447,161.72,161.67,6.186]
[1746764515129,29.96,161.72,161.67,6.186]
[1746764515528,6.1851,161.71,161.67,6.186]
[1746764515733,29.96,161.72,161.65,6.1868]
[1746764517235,6.1857,161.69,161.65,6.1868]
[1746764517734,29.96,161.72,161.63,29.98]
[1746764518237,6.1853,161.7,161.66,6.1863]
[1746764518527,29.96,161.72,161.63,29.98]
[1746764518928,6.1849,161.71,161.67,6.1861]
[1746764520233,6.1852,161.7,161.67,6.1861]
[1746764520537,29.96,161.72,161.63,29.98]
[1746764521032,29.96,161.72,161.67,6.1861]
[1746764521033,6.185,161.71,161.67,6.1861]
[1746764521433,29.96,161.72,161.63,29.98]
[1746764521635,36.1446,161.72,161.68,6.1858]
[1746764521937,36.1446,161.72,161.63,29.98]
[1746764522239,29.96,161.76,161.63,29.98]
[1746764522730,6.1841,161.73,161.63,29.98]
[1746764522924,29.96,161.76,161.63,29.98]
[1746764523127,29.96,161.76,161.64,9.91847553]
[1746764523836,36.1432,161.76,161.72,6.1842]
[1746764524038,29.96,161.76,161.72,6.1842]
[1746764524633,6.1835,161.75,161.72,6.1842]
[1746764525338,36.143,161.76,161.72,6.1842]
[1746764525635,36.143,161.76,161.73,6.184]
[1746764526738,29.96,161.79,161.74,6.1835]
[1746764527429,29.96,161.79,161.73,6.1839]
[1746764528135,6.1828,161.77,161.73,6.1839]
[1746764528539,29.96,161.79,161.7,29.86]
[1746764528740,29.96,161.79,161.71,1.54649324]
[1746764529035,6.1835,161.75,161.71,6.1845]
[1746764529342,29.78,161.81,161.7,29.86]
[1746764529343,3.9865,161.82,161.7,29.86]
[1746764529639,29.96,161.84,161.77,6.1824]
[1746764529942,29.96,161.84,161.74,31.08]
[1746764530136,6.1803,161.83,161.74,31.08]
[1746764531034,29.96,161.84,161.74,31.08]
[1746764531340,29.96,161.84,161.75,3.62451453]
[1746764531640,36.1401,161.84,161.79,6.1814]
[1746764532341,6.1803,161.83,161.79,6.1814]
[1746764532534,29.96,161.84,161.78,6.182]
[1746764532739,29.96,161.84,161.75,2.0786]
[1746764532939,6.1809,161.82,161.76,1.54605964]
[1746764533139,6.1809,161.82,161.77,6.1822]
[1746764533338,29.96,161.84,161.73,29.96]
[1746764533540,31.04,161.83,161.74,6.1835]
[1746764533943,31.04,161.83,161.71,31.04]
[1746764534132,6.1815,161.8,161.72,1.54624799]
[1746764534336,36.1215,161.8,161.73,1.54624799]
[1746764534536,36.1215,161.8,161.74,1.54624799]
[1746764534740,36.1215,161.8,161.71,31.04]
[1746764534942,36.1215,161.8,161.72,1.54623146]
[1746764535142,36.1215,161.8,161.71,31.04]
[1746764535143,36.1215,161.8,161.73,1.54623146]
[1746764535338,36.1215,161.8,161.76,6.1826]
[1746764535842,29.94,161.8,161.74,6.1834]
[1746764536245,29.94,161.8,161.71,31.04]
[1746764536445,6.1818,161.79,161.75,6.183]
[1746764536938,29.94,161.8,161.71,31.04]
[1746764537143,29.94,161.8,161.72,1.54632275]
[1746764537342,29.94,161.8,161.73,1.54632275]
[1746764537544,29.94,161.8,161.74,1.54632275]
[1746764537739,29.94,161.8,161.71,31.04]
[1746764537937,29.94,161.8,161.72,1.54625991]
[1746764538141,29.94,161.8,161.73,1.54625991]
[1746764538342,31.22,161.79,161.71,6.1847]
[1746764538541,31.22,161.79,161.72,1.54641713]
[1746764538745,31.22,161.79,161.73,1.54640904]
[1746764538945,31.22,161.79,161.7,32.0191]
[1746764539246,31.22,161.79,161.71,1.54643969]
[1746764539445,31.22,161.79,161.72,1.54643969]
[1746764539646,31.22,161.79,161.7,32.0191]
[1746764539845,6.1828,161.77,161.71,1.54645261]
[1746764540046,6.1828,161.77,161.7,32.0191]
[1746764540047,6.1828,161.77,161.72,1.54645261]
[1746764540244,6.1828,161.77,161.7,32.0191]
[1746764540442,6.182,161.79,161.71,1.54643525]
[1746764540642,31.18,161.79,161.72,1.54643525]
[1746764540843,31.18,161.79,161.73,1.54643525]
[1746764541048,31.18,161.79,161.74,1.54643525]
[1746764541246,31.18,161.79,161.75,1.5462813]
[1746764541447,31.18,161.79,161.73,31.24]
[1746764541647,37.3618,161.79,161.75,6.1829]
[1746764541945,37.3618,161.79,161.73,31.24]
[1746764542145,37.3618,161.79,161.75,6.1829]
[1746764542647,37.3618,161.79,161.76,6.1829]
[1746764542844,31.18,161.79,161.73,31.24]
[1746764543045,31.18,161.79,161.74,1.54618427]
[1746764543345,6.1818,161.79,161.75,7.72908427]
[1746764543546,6.1818,161.79,161.75,6.1829]
[1746764544049,6.1815,161.8,161.76,6.1827]
[1746764544347,31.18,161.81,161.73,31.24]
[1746764544552,31.18,161.85,161.74,31.18]
[1746764544753,6.1805,161.83,161.74,31.18]
[1746764544956,6.1805,161.83,161.75,3.9527]
[1746764545248,6.1807,161.82,161.75,3.9527]
[1746764545654,6.1807,161.82,161.78,6.1817]
[1746764546453,31.18,161.85,161.75,3.9527]
[1746764546649,31.18,161.85,161.76,1.5459305]
[1746764546953,6.1821,161.79,161.72,31.26]
[1746764547254,31.18,161.8,161.74,6.1833]
[1746764547550,6.1824,161.78,161.74,6.1833]
[1746764547748,31.18,161.8,161.73,6.1839]
[1746764547951,31.18,161.8,161.72,31.26]
[1746764548254,31.18,161.8,161.73,6.184]
[1746764548453,31.18,161.8,161.72,31.26]
[1746764548655,6.1823,161.78,161.72,31.26]
[1746764548956,6.1823,161.78,161.74,6.1834]
[1746764549455,6.1818,161.79,161.72,31.26]
[1746764549648,31.18,161.8,161.72,31.26]
[1746764550056,37.3614,161.8,161.73,1.54620997]
[1746764550255,37.3614,161.8,161.74,1.54620997]
[1746764550554,31.18,161.8,161.77,6.1825]
[1746764550756,31.18,161.8,161.72,31.26]
[1746764550950,31.18,161.8,161.73,1.5460888]
[1746764551151,31.18,161.8,161.74,1.54613984]
[1746764551451,31.18,161.8,161.75,1.54613984]
[1746764551651,6.182,161.79,161.76,1.54613984]
[1746764551848,9.91830822,161.77,161.57,7.31225549]
[1746764552052,9.93310189,161.69,161.58,1.54642664]
[1746764552247,68.5381,161.68,161.57,7.31225549]
[1746764552448,62.62,161.67,161.57,7.31225549]
[1746764552957,62.62,161.66,161.57,7.31225549]
[1746764553155,31.18,161.68,161.57,7.31225549]
[1746764553356,6.1866,161.67,161.58,6.1895]
[1746764553558,6.1866,161.67,161.59,31.44]
[1746764554054,6.1866,161.67,161.6,6.1887]
[1746764554261,6.1866,161.67,161.6,4.097]
[1746764554758,6.1867,161.66,161.61,6.1885]
[1746764555159,31.18,161.68,161.6,4.097]
[1746764555559,6.1871,161.65,161.6,10.2857]
[1746764556161,6.1868,161.66,161.61,6.1885]
[1746764556861,6.1868,161.66,161.62,6.1881]
[1746764557364,6.1864,161.67,161.62,6.1881]
[1746764557856,6.1868,161.66,161.61,6.1885]
[1746764558063,31.18,161.68,161.61,6.1885]
[1746764558361,31.18,161.68,161.6,4.097]
[1746764558760,6.1874,161.65,161.6,4.097]
[1746764558960,31.18,161.68,161.6,4.097]
[1746764559462,6.1867,161.66,161.61,6.1885]
[1746764560464,6.1867,161.66,161.62,6.1881]
[1746764560965,6.1867,161.66,161.6,4.097]
[1746764561163,6.1867,161.66,161.61,6.1883]
[1746764561358,6.1867,161.66,161.6,4.097]
[1746764561762,6.1867,161.66,161.61,6.1885]
[1746764562257,6.1872,161.65,161.61,6.1885]
[1746764562462,31.18,161.68,161.6,4.097]
[1746764562766,6.1872,161.65,161.6,4.097]
[1746764563159,31.18,161.68,161.6,4.097]
[1746764563968,31.18,161.68,161.61,6.1886]
[1746764565166,31.18,161.68,161.6,10.2859]
[1746764565364,31.18,161.68,161.6,4.097]
[1746764565871,6.1875,161.64,161.61,31.06]
[1746764566968,6.1872,161.65,161.61,31.06]
[1746764567268,31.18,161.68,161.61,31.06]
[1746764567471,31.18,161.68,161.61,33.0947]
[1746764568071,31.18,161.68,161.61,2.0347]
[1746764568274,31.18,161.68,161.62,31.04]
[1746764568469,31.18,161.68,161.62,40.96800841]
[1746764568665,6.1848,161.71,161.67,6.1863]
[1746764568870,31.06,161.72,161.67,6.1863]
[1746764569271,37.2448,161.72,161.68,6.1859]
[1746764569574,31.06,161.72,161.66,31.1]
[1746764570273,31.06,161.72,161.68,6.1857]
[1746764571473,31.06,161.72,161.66,31.1]
[1746764571474,37.2445,161.72,161.67,6.1862]
[1746764572876,37.2445,161.72,161.68,6.1859]
[1746764573076,31.06,161.72,161.66,31.1]
[1746764573374,31.06,161.72,161.66,33.1701]
[1746764573575,31.06,161.72,161.69,6.1852]
[1746764575575,31.06,161.72,161.7,6.1851]
[1746764575877,31.06,161.72,161.66,33.1701]
[1746764576273,31.06,161.72,161.69,6.1854]
[1746764576980,31.06,161.72,161.7,6.1851]
[1746764577176,31.06,161.72,161.66,35.0953]
[1746764577679,31.06,161.72,161.69,6.1853]
[1746764577875,31.06,161.72,161.66,35.0953]
[1746764578577,31.06,161.72,161.7,6.1851]
[1746764579273,6.1834,161.75,161.72,6.1844]
[1746764579879,37.2229,161.76,161.72,6.1844]
[1746764580178,37.2229,161.76,161.73,6.1839]
[1746764580678,31.04,161.76,161.74,6.1834]
[1746764582182,31.04,161.76,161.75,6.1833]
[1746764582377,31.04,161.76,161.7,31.16]
[1746764582882,31.04,161.76,161.73,6.1839]
[1746764583984,37.2229,161.76,161.72,6.1843]
[1746764584582,37.2229,161.76,161.73,6.1839]
[1746764584880,31.04,161.76,161.7,31.16]
[1746764585185,31.04,161.76,161.74,6.1836]
[1746764585580,31.04,161.76,161.7,31.16]
[1746764585786,37.223,161.76,161.73,6.1839]
[1746764585987,31.04,161.76,161.7,31.16]
[1746764586388,31.04,161.76,161.73,6.1837]
[1746764586682,31.04,161.76,161.7,31.16]
[1746764587386,31.04,161.76,161.74,6.1833]
[1746764588282,56.0579476,161.75,161.53,29.24902197]
[1746764588483,892.23655249,161.74,161.53,29.24902197]
[1746764588678,6.1979476,161.62,161.53,29.24902197]
[1746764589485,6.1979476,161.62,161.52,6.192]
[1746764589687,6.20950479,161.61,161.49,45.09605549]
[1746764589880,6.189,161.6,161.53,6.1916]
[1746764591094,6.20950479,161.62,161.52,62.72]
[1746764591485,6.20950479,161.62,161.55,6.1906]
[1746764591486,12.39780479,161.62,161.55,6.1906]
[1746764591689,6.1883,161.62,161.55,6.1906]
[1746764592392,6.1883,161.62,161.56,6.1905]
[1746764593296,1.969,161.63,161.52,31.04]
[1746764593592,1.969,161.63,161.53,31.54]
[1746764594295,9.93307445,161.61,161.52,31.04]
[1746764594497,31.06,161.6,161.52,31.04]
[1746764594691,62.56,161.6,161.52,31.04]
[1746764596099,62.56,161.6,161.57,6.1898]
[1746764596601,62.56,161.6,161.52,31.04]
[1746764598394,68.7491,161.6,161.56,6.1904]
[1746764600400,62.56,161.6,161.57,6.1901]
[1746764600600,31.06,161.6,161.57,6.1901]
[1746764601104,37.2491,161.6,161.57,6.1901]
[1746764601401,37.2491,161.6,161.56,6.1905]
[1746764602801,37.2491,161.6,161.57,6.1901]
[1746764603901,31.06,161.6,161.57,6.1901]
[1746764604300,31.06,161.6,161.58,6.1897]
[1746764604502,37.249,161.6,161.54,31.42]
[1746764604802,31.06,161.6,161.57,6.1901]
[1746764605003,31.06,161.6,161.54,31.42]
[1746764606200,6.1884,161.62,161.54,31.42]
[1746764608508,6.1884,161.62,161.59,6.1891]
[1746764608799,31.42,161.63,161.54,31.42]
[1746764609404,37.6081,161.63,161.54,31.42]
[1746764609606,37.6081,161.63,161.59,6.1891]
[1746764610605,37.6081,161.63,161.6,6.189]
[1746764611704,31.42,161.63,161.61,6.1885]
[1746764611902,31.42,161.63,161.58,30.76]
[1746764612108,37.6066,161.67,161.58,30.76]
[1746764612304,31.42,161.67,161.58,30.76]
[1746764613407,31.42,161.67,161.66,6.1867]
[1746764613608,4.0784,161.71,161.57,6.0038]
[1746764613609,31.42,161.71,161.62,30.78]
[1746764613912,31.42,161.71,161.68,6.1858]
[1746764614307,31.42,161.71,161.62,30.78]
[1746764614608,37.6052,161.71,161.62,30.78]
[1746764614908,31.42,161.71,161.62,30.78]
[1746764615614,6.1856,161.69,161.62,30.78]
[1746764616217,6.1856,161.69,161.65,6.1868]
[1746764616410,6.1856,161.69,161.62,30.78]
[1746764617707,6.1856,161.69,161.65,6.1869]
[1746764618614,6.1863,161.68,161.63,6.1875]
[1746764618813,6.1863,161.68,161.62,30.78]
[1746764619112,6.1863,161.67,161.61,31.42]
[1746764619315,31.42,161.71,161.61,31.42]
[1746764619514,31.42,161.71,161.61,30.7]
[1746764619715,6.1874,161.65,161.61,36.8884]
[1746764619916,6.1874,161.65,161.61,30.7]
[1746764620310,6.1874,161.65,161.61,36.8885]
[1746764620915,6.1874,161.65,161.62,6.1881]
[1746764621111,6.1868,161.66,161.62,6.1881]
[1746764621615,37.6063,161.67,161.63,6.1878]
[1746764621919,31.42,161.67,161.62,6.1881]
[1746764622115,6.1867,161.66,161.62,6.1881]
[1746764622416,31.42,161.67,161.61,30.7]
[1746764622619,31.42,161.67,161.61,36.8886]
[1746764623118,6.1873,161.65,161.61,36.8886]
[1746764623319,6.1873,161.65,161.62,6.1882]
[1746764624218,37.6067,161.67,161.62,6.1882]
[1746764624419,31.42,161.67,161.62,6.1882]
[1746764624919,6.1868,161.66,161.62,6.1882]
[1746764625420,6.1868,161.66,161.59,30.8]
[1746764625814,6.1868,161.66,161.62,6.188]
[1746764626019,31.42,161.67,161.57,37.4238]
[1746764626322,31.42,161.67,161.6,6.189]
[1746764626523,6.1877,161.64,161.58,30.82]
[1746764626819,6.1877,161.64,161.6,6.1887]
[1746764628123,6.1879,161.63,161.6,6.1887]
[1746764628313,30.8,161.64,161.56,30.8]
[1746764628519,30.78,161.63,161.54,30.8]
[1746764630025,6.1887,161.61,161.57,6.1901]
[1746764631126,6.1887,161.61,161.58,6.1897]
[1746764631322,6.1883,161.62,161.58,6.1897]
[1746764635031,6.1887,161.61,161.58,6.1897]
[1746764635230,30.78,161.63,161.57,6.1901]
[1746764635733,6.1889,161.61,161.57,6.1901]
[1746764635933,6.1889,161.61,161.58,6.1896]
[1746764636128,6.1889,161.61,161.54,30.62]
[1746764636431,6.1889,161.61,161.57,6.1898]
[1746764637638,6.1889,161.61,161.58,6.1896]
[1746764638536,6.1889,161.61,161.57,6.19]
[1746764639136,6.1891,161.6,161.57,6.19]
[1746764639433,6.20842573,161.62,161.53,32.8291]
[1746764639834,6.20842573,161.62,161.53,30.78]
[1746764640137,6.1904,161.57,161.53,36.9714]
[1746764640342,30.8,161.59,161.5,30.48]
[1746764640839,6.1908,161.56,161.52,6.1917]
[1746764641038,30.8,161.55,161.49,4.1049]
[1746764641240,30.8,161.55,161.47,1.9208]
[1746764641832,6.1921,161.52,161.48,6.1933]
[1746764645041,30.8,161.55,161.47,1.9208]
[1746764645234,30.8,161.55,161.41,3.9801]
[1746764645439,6.0505,161.54,161.41,3.9801]
[1746764645639,6.0505,161.54,161.44,6.195]
[1746764645939,6.0505,161.54,161.41,34.4801]
[1746764646237,6.194,161.47,161.43,6.1954]
[1746764646438,30.8,161.49,161.41,3.9801]
[1746764646639,30.8,161.48,161.41,2.0659]
[1746764646938,30.8,161.48,161.4,61.28]
[1746764647546,30.8,161.48,161.39,1.9114]
[1746764647837,6.1954,161.44,161.4,6.1964]
[1746764648138,30.46,161.46,161.39,1.9114]
[1746764648443,6.1949,161.45,161.41,6.1963]
[1746764648640,36.9949,161.45,161.41,6.1963]
[1746764648941,30.8,161.45,161.39,1.9114]
[1746764649341,30.8,161.47,161.39,1.9114]
[1746764649541,30.8,161.48,161.39,1.9114]
[1746764649841,36.9937,161.48,161.39,1.9114]
[1746764650140,30.8,161.48,161.39,1.9114]
[1746764650349,30.8,161.48,161.4,30.8]
[1746764650539,30.8,161.48,161.41,30.5]
[1746764650843,30.8,161.48,161.47,6.194]
[1746764651043,30.8,161.52,161.41,40.44270415]
[1746764651439,36.9921,161.52,161.49,6.1932]
[1746764651640,30.8,161.52,161.49,6.1932]
[1746764652844,36.9923,161.52,161.48,6.1935]
[1746764653144,30.8,161.52,161.45,30.56]
[1746764653345,6.1935,161.49,161.45,6.1947]
[1746764653547,6.1935,161.49,161.43,30.58]
[1746764653844,30.8,161.52,161.43,30.58]
[1746764654144,6.1927,161.51,161.43,32.5111]
[1746764654347,6.1927,161.51,161.44,2.0995]
[1746764654646,6.1928,161.5,161.47,6.1937]
[1746764654845,6.1928,161.5,161.44,2.0995]
[1746764655047,30.8,161.52,161.44,2.0995]
[1746764655347,30.8,161.52,161.45,6.1947]
[1746764655348,6.1935,161.49,161.45,6.1947]
[1746764655549,30.8,161.52,161.44,2.0995]
[1746764656949,6.193,161.5,161.47,6.1937]
[1746764657150,30.8,161.52,161.47,6.1937]
[1746764657548,6.1927,161.51,161.47,6.1937]
[1746764657749,30.8,161.52,161.48,6.1936]
[1746764658348,6.1926,161.51,161.48,6.1936]
[1746764658740,30.8,161.52,161.44,2.0995]
[1746764659547,30.8,161.52,161.45,6.1946]
[1746764659849,30.8,161.52,161.44,2.0995]
[1746764660150,30.8,161.52,161.47,6.1939]
[1746764660552,30.8,161.52,161.44,2.0995]
[1746764661246,6.1934,161.49,161.46,6.1941]
[1746764661454,30.8,161.52,161.44,2.0995]
[1746764661753,6.1938,161.48,161.44,8.2943]
[1746764661953,30.8,161.52,161.44,2.0995]
[1746764662150,6.1937,161.48,161.45,6.1945]
[1746764662957,6.1933,161.49,161.45,6.1945]
[1746764663256,6.1933,161.49,161.46,6.1943]
[1746764663758,30.8,161.52,161.47,6.1938]
[1746764663956,30.8,161.52,161.44,2.0995]
[1746764664557,6.1927,161.51,161.47,6.1938]
[1746764665956,6.1929,161.5,161.44,2.0995]
[1746764666261,30.8,161.52,161.44,2.0995]
[1746764666862,6.1932,161.5,161.46,6.1944]
[1746764667055,30.8,161.52,161.46,6.1944]
[1746764667260,30.8,161.52,161.44,2.0995]
[1746764667464,6.1939,161.48,161.44,8.2946]
[1746764668163,6.1944,161.46,161.44,2.0995]
[1746764668364,30.8,161.52,161.43,1.9311]
[1746764668662,30.8,161.52,161.44,6.1951]
[1746764669162,6.1943,161.47,161.44,6.1951]
[1746764669662,30.8,161.52,161.44,6.1951]
[1746764669852,6.1938,161.48,161.44,6.1951]
[1746764671166,6.194,161.47,161.44,6.1951]
[1746764672665,30.8,161.52,161.43,1.9311]
[1746764673261,6.1927,161.51,161.43,1.9311]
[1746764674363,8.12272327,161.57,161.43,1.9311]
[1746764674364,387.56,161.58,161.45,6.21452327]
[1746764674565,387.56,161.58,161.46,64.9424]
[1746764674968,6.1915,161.54,161.5,6.1926]
[1746764675266,6.1915,161.54,161.46,64.9424]
[1746764675567,6.1918,161.53,161.5,6.1925]
[1746764676162,6.1914,161.54,161.5,6.1925]
[1746764676667,387.56,161.58,161.5,6.1925]
[1746764677166,387.56,161.58,161.5,7.6225]
[1746764677968,6.1916,161.54,161.51,6.1924]
[1746764680665,387.56,161.58,161.52,6.1919]
[1746764680869,387.56,161.58,161.5,31.51]
[1746764681370,6.1907,161.56,161.53,6.1914]
[1746764681978,6.1907,161.56,161.52,6.1919]
[1746764682160,387.56,161.58,161.5,31.51]
[1746764683070,387.56,161.58,161.51,6.1924]
[1746764683270,387.56,161.58,161.5,31.51]
[1746764684070,6.1911,161.55,161.52,6.192]
[1746764685870,6.1911,161.55,161.51,6.1923]
[1746764686271,6.1914,161.54,161.51,6.1923]
[1746764689578,6.1918,161.53,161.5,36.2727]
[1746764689967,387.56,161.58,161.5,30.08]
[1746764690270,6.1914,161.54,161.5,6.1927]
[1746764690470,387.56,161.58,161.5,6.1927]
[1746764691169,6.21452327,161.57,161.47,1.43]
[1746764691573,1.951,161.56,161.47,1.43]
[1746764691774,6.1923,161.52,161.47,1.43]
[1746764692774,6.1923,161.52,161.49,6.1932]
[1746764693373,31.811,161.56,161.47,7.64452327]
[1746764693774,6.1916,161.54,161.5,6.1925]
[1746764694173,6.1916,161.54,161.47,7.64452327]
[1746764694375,6.1916,161.54,161.5,6.1926]
[1746764695277,6.1918,161.53,161.5,6.1926]
[1746764695874,6.1918,161.53,161.49,6.1931]
[1746764696376,6.1921,161.52,161.49,6.1931]
[1746764696676,29.86,161.56,161.5,6.1928]
[1746764696970,29.86,161.56,161.47,37.56452327]
[1746764697175,29.86,161.56,161.47,31.35]
[1746764697367,1.9203,161.55,161.47,1.43]
[1746764697981,1.9203,161.55,161.47,7.6238]
[1746764698276,6.1928,161.51,161.47,7.6238]
[1746764698768,6.1928,161.51,161.47,6.1938]